Cogmind - Beta 11.1 @@@ ROGUE MODE // 2022.04.25 @ 16:35:10 Player: the cat Result: Destroyed by 7P-T3G(z) with Zionite Laser-S Performance ------------- Evolutions (3) 1500 Regions Visited (13) 2600 Robots Destroyed (173) 865 Value Destroyed (4627) 4627 Prototype IDs (19) 380 Alien Tech Used (0) 0 Bonus (1113) 1113 TOTAL SCORE: 11085 Bonus ------- High Alert Combat Kills 674 Follower Combat Kills 70 Met Imprinter 300 Was Imprinted 300 Destroyed Z-Imprinter 1000 Triggered Deep Caves Wall 500 Friendly Fire -1731 Cogmind --------- Core Integrity 0/700 Matter 105/300 Energy 100/100 System Corruption 0% Temperature Cool (9) Movement Flying (115) Ox1 Location -7/Deep Caves Parts ------- > --- POWER (1) -------- (None) > --- PROPULSION (4) --- Cesium-ion Thruster > --- UTILITY (6) ------ Experimental Signal Interpreter > --- WEAPON (2) ------- Scatter Rocket Array > --- INVENTORY (5) ---- Structural Scanner Cooled Plasma Cannon Scythe Peak State ------------ > --- POWER ------------ Light Nuclear Core > --- PROPULSION ------- Improved Flight Unit Improved Flight Unit Improved Flight Unit Improved Cesium-ion Thruster > --- UTILITY ---------- Improved Signal Interpreter Hacking Suite System Shield Heart of Steel > --- WEAPON ----------- Greatsword > --- INVENTORY -------- Light Nuclear Core Improved Light Armor Plating Hacking Suite Cooled Plasma Cannon Scatter Rocket Array [Rating: 60] Favorites ----------- Power Improved Deuterium Engine Engine Improved Deuterium Engine Power Core Light Nuclear Core Propulsion Light Treads Treads Light Treads Wheel Armored Huge Wheel Flight Unit Improved Flight Unit Utility Improved Heat Sink Device Improved Heat Sink Storage Large Storage Unit Processor Improved Signal Interpreter Hackware Hacking Suite Protection Light Armor Plating Weapon Advanced Beam Cannon Energy Gun Spread Laser Energy Cannon Advanced Beam Cannon Ballistic Gun Improved Assault Rifle Launcher Precision Grenade Launcher Slashing Weapon Greatsword Build | -11 -10 -10 -9 -9 -9 -8 -8 -8 -7 -7 -7 -7 -7 ------- Run | Scr Mat Min Mat Min Exi Min Mat Sto Fac Low Low Zio Dee Slots Evolved 6 | . . . 2 . . . 2 . 2 . . . . Power . | . . . . . . . . . . . . . . Propulsion 2 | . . . 1 . . . 1 . . . . . . Utility 4 | . . . 1 . . . 1 . 2 . . . . Weapon . | . . . . . . . . . . . . . . Parts Attached 171 | 6 10 5 29 5 1 3 44 29 17 1 7 9 5 Power 13 | 1 2 1 2 1 . . 2 3 . . . 1 . Engine 10 | 1 2 1 2 1 . . . 2 . . . 1 . Core 3 | . . . . . . . 2 1 . . . . . Reactor . | . . . . . . . . . . . . . . Propulsion 41 | 2 1 2 10 3 . . 9 7 5 . . . 2 Treads 28 | 1 . 1 9 1 . . 9 7 . . . . . Leg . | . . . . . . . . . . . . . . Wheel 4 | 1 1 1 . 1 . . . . . . . . . Hover . | . . . . . . . . . . . . . . Flight 9 | . . . 1 1 . . . . 5 . . . 2 Utility 57 | 1 3 . 4 1 1 1 15 6 8 1 7 8 1 Device 18 | . 1 . . 1 . . 4 3 2 . 5 1 1 Storage 8 | 1 2 . . . 1 . 1 . 2 . 1 . . Processor 7 | . . . . . . . 2 1 . . . 4 . Hackware 3 | . . . . . . . . . 2 . . 1 . Protection 21 | . . . 4 . . 1 8 2 2 1 1 2 . Artifact . | . . . . . . . . . . . . . . Weapon 60 | 2 4 2 13 . . 2 18 13 4 . . . 2 Energy Gun 7 | 2 . . 5 . . . . . . . . . . Energy Cannon 31 | . 3 1 6 . . 2 11 7 1 . . . . Ballistic Gun 6 | . 1 . 1 . . . 2 2 . . . . . Ballistic Cannon . | . . . . . . . . . . . . . . Launcher 10 | . . . . . . . 4 4 . . . . 2 Special Weapon . | . . . . . . . . . . . . . . Impact Weapon . | . . . . . . . . . . . . . . Slashing Weapon 6 | . . 1 1 . . . 1 . 3 . . . . Piercing Weapon . | . . . . . . . . . . . . . . Special Melee Weapon . | . . . . . . . . . . . . . . Unidentified Prototypes 17 | . . . 6 . . . 1 3 1 . 1 4 1 Parts Lost 29 | . 4 2 1 . . 1 6 2 . . . . 13 Power 5 | . 2 . . . . . 2 . . . . . 1 Propulsion 10 | . 1 2 1 . . . 1 . . . . . 5 Utility 9 | . . . . . . 1 1 1 . . . . 6 Weapon 5 | . 1 . . . . . 2 1 . . . . 1 Highest Loss Streak 13 | . 3 2 1 . . 1 4 2 . . . . 13 To Critical Strikes . | . . . . . . . . . . . . . . Average Slot Usage (%) 92 | . 97 99 99 89 67 83 93 99 91 92 89 92 62 Engine 8 | . 13 14 11 11 11 11 8 5 . . . 4 3 Core 1 | . . . . . . . . 3 7 7 7 2 . Treads 18 | . 14 13 26 13 11 11 25 36 . . . . . Wheel 6 | . 14 13 6 9 11 11 5 . . . . . . Flight 4 | . . . . . . . . . 29 30 30 30 20 Device 11 | . 11 14 11 11 11 11 8 13 12 15 13 14 4 Storage 10 | . 14 14 11 11 11 11 9 9 7 7 6 7 5 Processor 2 | . . . . . . . 1 9 7 7 7 7 7 Hackware 1 | . . . . . . . . . 13 15 15 7 5 Protection 8 | . . . 11 11 11 8 15 4 3 . . 7 8 Energy Cannon 15 | . 24 26 19 22 1 20 17 15 . . . . . Slashing Weapon 1 | . . 1 . . . . . . 6 7 7 7 3 Naked Turns . | . . . . . . . . . . . . . . Heaviest Build 263 | 12 34 34 40 43 55 65 263 81 19 19 20 20 20 Greatest Support 92 | 20 20 16 60 60 28 28 92 92 21 21 21 21 21 Greatest Overweight (x) 9 | . 3 3 2 1 1 2 9 . . . . . . Average Overweight (x) . | . 1 2 . . 1 1 1 . . . . . . Largest Inventory Capacity 35 | 8 15 15 15 15 20 20 35 20 20 8 8 8 8 Average Capacity 15 | 6 11 15 15 15 18 20 20 20 8 8 7 8 7 Most Carried 20 | 4 15 15 15 15 20 20 20 20 16 8 8 8 8 Average Carried 14 | 2 8 13 14 14 16 18 19 19 8 8 7 7 7 Final Capacity 20 | 8 15 15 15 15 20 20 20 20 8 8 8 8 5 Final Carried 20 | 4 15 13 15 15 20 19 19 17 8 8 8 8 3 Class Distribution -------------------- 72% | Mutant 12% | Scavenger-Mutant 6% | Hacker-Scout 4% | Scout Dominant Class ---------------- Mutant | -10/Materials Mutant | -10/Mines Mutant | -9/Materials Mutant | -9/Mines Mutant | -9/Exiles Mutant | -8/Mines Mutant | -8/Materials Scavenger-Mutant | -8/Storage Hacker-Scout | -7/Factory Hacker-Scout | -7/Lower Caves Hacker-Scout | -7/Lower Caves Scout | -7/Zion Sprinter | -7/Deep Caves Resources | -11 -10 -10 -9 -9 -9 -8 -8 -8 -7 -7 -7 -7 -7 ----------- Run | Scr Mat Min Mat Min Exi Min Mat Sto Fac Low Low Zio Dee Matter Collected 2567 | 199 262 40 344 143 . 136 565 569 159 40 70 40 . Remotely . | . . . . . . . . . . . . . . Salvage Created 6671 | . 540 433 1633 171 . 242 1785 1298 299 . 36 . 234 Parts 385 | . 28 32 104 8 . 11 90 81 20 . 2 . 9 Haulers Intercepted 18 | . 2 . 4 . . . 5 4 3 . . . . Recyclers Shooed 1 | . . . . . . . 1 . . . . . . Parts Field Recycled . | . . . . . . . . . . . . . . Retrieved Matter . | . . . . . . . . . . . . . . Parts Self-Destructed . | . . . . . . . . . . . . . . Prevented . | . . . . . . . . . . . . . . Kills | -11 -10 -10 -9 -9 -9 -8 -8 -8 -7 -7 -7 -7 -7 ------- Run | Scr Mat Min Mat Min Exi Min Mat Sto Fac Low Low Zio Dee Combat Hostiles Destroyed 136 | . 8 11 29 3 . 7 28 29 . . . . 21 Melee 2 | . . 2 . . . . . . . . . . . Guns 6 | . 1 . 3 . . . 1 1 . . . . . Cannons 81 | . 6 9 24 3 . 6 21 12 . . . . . AOE 42 | . . . . . . . 5 16 . . . . 21 Classes Destroyed 19 | . 3 4 5 . . 1 2 2 . . 1 . 1 Worker 12 | . . 1 3 1 . . 3 4 . . . . . Builder 5 | . . 1 1 . . . 1 . 2 . . . . Tunneler 4 | . . 1 1 1 . . 1 . . . . . . Hauler 18 | . 2 . 4 . . . 5 4 3 . . . . Recycler 9 | . 1 . 3 1 . . 1 2 1 . . . . Mechanic 1 | . . . 1 . . . . . . . . . . Operator 2 | . . . 2 . . . . . . . . . . Drone 5 | . . . . . . . . 5 . . . . . Watcher 10 | . . . 4 . . . 4 1 1 . . . . Swarmer 23 | . . . 10 . . 3 4 6 . . . . . Grunt 57 | . 8 9 10 . . 2 16 12 . . . . . Brawler 2 | . . . . . . . 2 . . . . . . Duelist 3 | . . . . . . . 1 2 . . . . . Protector 1 | . . . . . . . . 1 . . . . . Sentry 22 | . . . 9 . . . 5 8 . . . . . Hunter 2 | . . . . . . 2 . . . . . . . Z-Light 1 | . . . . . . . . . . . . . 1 Tinkerer 1 | . . . . . . . . . . . 1 . . Assembled 24 | . . 2 . 3 . . . . . . . . 19 Best Kill Streak 18 | . 2 2 5 2 . 2 13 14 1 . . . 18 Combat Bots Only 18 | . 2 2 4 2 . 2 7 12 . . . . 18 Max Kills in Single Turn 15 | . 1 1 2 1 . 1 2 6 1 . 1 . 15 Gunslinging . | . . . . . . . . . . . . . . Exploded 15 | . . . . . . . 2 5 . . . . 15 Melee 1 | . . 1 . . . . . . . . . . . Uniques/NPCs Destroyed 1 | . . . . . . . . . . . . . 1 Z-Imprinter (-7/Deep Caves) Combat | -11 -10 -10 -9 -9 -9 -8 -8 -8 -7 -7 -7 -7 -7 -------- Run | Scr Mat Min Mat Min Exi Min Mat Sto Fac Low Low Zio Dee Damage Taken 6216 | . 574 217 898 34 . 442 1443 852 . 30 37 . 1689 Core 1267 | . 122 45 131 . . 32 160 70 . 16 . . 691 Absorbed by Shields . | . . . . . . . . . . . . . . Redirected to Shielding 110 | . . . . . . . . . . . . . 110 Core Remaining (%) 62 | 100 . 33 . . . 59 . 58 . . . . . Volleys Fired 377 | . 39 28 105 14 . 30 94 63 1 . . . 3 Largest 2 | . 2 2 2 2 . 2 2 2 1 . . . 1 Hottest 136 | . 120 120 136 136 . 136 136 136 35 . . . 50 Shots Fired 725 | . 78 56 208 30 . 60 173 116 1 . . . 3 Gun 73 | . 18 . 28 . . . 5 22 . . . . . Cannon 636 | . 60 56 180 30 . 60 162 87 1 . . . . Launcher 16 | . . . . . . . 6 7 . . . . 3 Special . | . . . . . . . . . . . . . . Kinetic 51 | . 16 . 8 . . . 5 22 . . . . . Thermal 658 | . 62 56 200 30 . 60 162 87 1 . . . . Explosive 16 | . . . . . . . 6 7 . . . . 3 Electromagnetic . | . . . . . . . . . . . . . . Robot Hit Streak 17 | . 8 7 17 6 . 10 10 9 . . . . 2 Robot Miss Streak 10 | . 3 4 6 2 . 6 5 7 . . . . 10 Penetration Max . | . . . . . . . . . . . . . . Secondary Targets . | . . . . . . . . . . . . . . Shots Hit Robots 441 | . 49 30 128 13 . 36 96 67 13 . 2 . 7 Core Hits 315 | . 17 17 63 6 . 11 61 80 4 . 2 . 54 Critical Kills 5 | . 1 . 2 . . 1 1 . . . . . . Critical Parts Destroyed . | . . . . . . . . . . . . . . Critical Strikes 10 | . 1 . 3 . . 1 1 . 2 . . . 2 Burn 1 | . . . 1 . . . . . . . . . . Meltdown 4 | . 1 . 1 . . 1 1 . . . . . . Destroy 1 | . . . 1 . . . . . . . . . . Sever 4 | . . . . . . . . . 2 . . . 2 Melee Attacks 85 | . . 11 1 . . . 1 . 28 1 8 25 10 Impact . | . . . . . . . . . . . . . . Slashing 85 | . . 11 1 . . . 1 . 28 1 8 25 10 Piercing . | . . . . . . . . . . . . . . Sneak Attacks 8 | . . . . . . . . . 6 . 2 . . Combat Hostiles . | . . . . . . . . . . . . . . Follow-up Attacks . | . . . . . . . . . . . . . . Damage Inflicted 13587 | . 766 605 2544 266 . 739 2649 3213 1035 . 211 . 1559 Guns 719 | . 121 . 335 . . . 57 206 . . . . . Cannons 7293 | . 645 484 2204 266 . 739 1892 1063 . . . . . Explosions 3992 | . . . . . . . 700 1944 . . . . 1348 Melee 1578 | . . 121 . . . . . . 1035 . 211 . 211 Ramming 5 | . . . 5 . . . . . . . . . . Kinetic 434 | . 97 . 74 . . . 57 206 . . . . . Thermal 7578 | . 669 484 2465 266 . 739 1892 1063 . . . . . Explosive 3992 | . . . . . . . 700 1944 . . . . 1348 Electromagnetic . | . . . . . . . . . . . . . . Impact . | . . . . . . . . . . . . . . Slashing 1578 | . . 121 . . . . . . 1035 . 211 . 211 Piercing . | . . . . . . . . . . . . . . Highest Corruption 6 | . . . 6 6 6 6 . . . . . . . Average Corruption 5 | . . . 5 6 6 6 . . . . . . . Corruption Purged . | . . . . . . . . . . . . . . Corruption Blocked . | . . . . . . . . . . . . . . Effects 114 | . . . 52 28 11 23 . . . . . . . Message Errors 24 | . . . 12 6 3 3 . . . . . . . Matter Fused 29 | . . . 8 8 4 9 . . . . . . . Heat Flow Errors 14 | . . . 7 3 1 3 . . . . . . . Energy Discharges 11 | . . . 5 5 1 . . . . . . . . Parts Rejected 1 | . . . 1 . . . . . . . . . . Data Loss (minor) 15 | . . . 9 3 1 2 . . . . . . . Data Loss (major) 8 | . . . 4 1 . 3 . . . . . . . Misfires 6 | . . . 3 2 . 1 . . . . . . . Alerts 2 | . . . . . 1 1 . . . . . . . Weapon Failures 4 | . . . 3 . . 1 . . . . . . . Overload Shots . | . . . . . . . . . . . . . . Overflow Damage 549 | . 15 . 3 8 . 20 40 89 352 . . . 22 Projectiles 83 | . 15 . 3 8 . 20 37 . . . . . . Explosions 114 | . . . . . . . 3 89 . . . . 22 Melee 352 | . . . . . . . . . 352 . . . . Knockbacks . | . . . . . . . . . . . . . . Impact . | . . . . . . . . . . . . . . Kinetic . | . . . . . . . . . . . . . . Secondary . | . . . . . . . . . . . . . . Self-Inflicted Damage 169 | . . . . . . . 44 41 . . . . 84 Shots 6 | . . . . . . . 1 1 . . . . 4 Rammed 1 | . . . 1 . . . . . . . . . . Targets Rammed 1 | . . . 1 . . . . . . . . . . Kicked . | . . . . . . . . . . . . . . Crushed . | . . . . . . . . . . . . . . Highest Temperature 575 | . 343 111 493 253 198 238 575 210 . . 1 . 19 Average Temperature 90 | . 102 37 70 121 108 40 142 57 . . 1 . 5 Received Heat Transfer 2362 | . 360 101 225 . . 135 846 288 . 9 18 . 380 Effects 24 | . . . 3 . . . 21 . . . . . . Shutdowns 4 | . . . 1 . . . 3 . . . . . . Energy Bleed 3 | . . . . . . . 3 . . . . . . Interference 10 | . . . 1 . . . 9 . . . . . . Matter Decay 1 | . . . . . . . 1 . . . . . . Short Circuit 1 | . . . . . . . 1 . . . . . . Damage (minor) 1 | . . . 1 . . . . . . . . . . Damage (major) 4 | . . . . . . . 4 . . . . . . Siege Activations . | . . . . . . . . . . . . . . Robots Corrupted . | . . . . . . . . . . . . . . Combat Hostiles . | . . . . . . . . . . . . . . Parts Fried . | . . . . . . . . . . . . . . Impact Corruptions . | . . . . . . . . . . . . . . Robots Melted 5 | . 1 . 2 . . 1 1 . . . . . . Combat Hostiles 5 | . 1 . 2 . . 1 1 . . . . . . Parts Melted 39 | . 3 3 16 . . 6 7 4 . . . . . Heat Transferred 14227 | . 1443 1036 4607 481 . 1332 3404 1924 . . . . . Parts Sabotaged . | . . . . . . . . . . . . . . Parts Stolen . | . . . . . . . . . . . . . . Parts Stripped . | . . . . . . . . . . . . . . Power Chain Reactions . | . . . . . . . . . . . . . . Missiles Intercepted . | . . . . . . . . . . . . . . Alert | -11 -10 -10 -9 -9 -9 -8 -8 -8 -7 -7 -7 -7 -7 ------- Run | Scr Mat Min Mat Min Exi Min Mat Sto Fac Low Low Zio Dee Peak Influence 998 | . 174 286 785 281 . 195 640 998 649 . . . . Initial 453 | . . 39 37 281 . . 25 222 453 . . . . Average 337 | . 74 168 416 169 . 73 408 640 534 . . . . Maximum Alert Level 3 | . . 1 3 1 . . 2 3 2 . . . . Low Security (%) 37 | 100 100 74 15 54 . 100 15 . . . . . . Level 1 25 | . . 25 39 45 . . 28 25 8 . . . . Level 2 25 | . . . 28 . . . 56 30 91 . . . . Level 3 10 | . . . 16 . . . . 43 . . . . . Level 4 . | . . . . . . . . . . . . . . Level 5 . | . . . . . . . . . . . . . . High Security . | . . . . . . . . . . . . . . Max Security . | . . . . . . . . . . . . . . Squads Dispatched 18 | . 1 1 4 1 . . 5 5 1 . . . . Investigation 4 | . . 1 . 1 . . 1 1 . . . . . Extermination . | . . . . . . . . . . . . . . Reinforcement 9 | . 1 . 3 . . . 2 2 1 . . . . Assault 5 | . . . 1 . . . 2 2 . . . . . Garrison . | . . . . . . . . . . . . . . Intercept . | . . . . . . . . . . . . . . Searches Triggered . | . . . . . . . . . . . . . . Construction Impeded 3 | . . . . . . . 2 1 . . . . . Haulers Reinforced 1 | . . . . . . . . . 1 . . . . Active Scanning Responses . | . . . . . . . . . . . . . . Cargo Convoy Interrupts . | . . . . . . . . . . . . . . Stealth | -11 -10 -10 -9 -9 -9 -8 -8 -8 -7 -7 -7 -7 -7 --------- Run | Scr Mat Min Mat Min Exi Min Mat Sto Fac Low Low Zio Dee Distress Signals 4 | . . . 1 . . . 3 . . . . . . Communications Jammed . | . . . . . . . . . . . . . . Distress Signals . | . . . . . . . . . . . . . . Times Spotted 205 | . 15 10 43 3 . 10 38 33 4 6 5 . 38 Peak Tracking Total 42 | . 2 2 6 1 . 3 5 11 3 4 3 . 42 Tactical Retreats 13 | . . . 2 1 . 3 1 . 1 1 2 . 2 Traps | -11 -10 -10 -9 -9 -9 -8 -8 -8 -7 -7 -7 -7 -7 ------- Run | Scr Mat Min Mat Min Exi Min Mat Sto Fac Low Low Zio Dee Traps Triggered 9 | . . . 5 . . . 1 1 2 . . . . Indirectly . | . . . . . . . . . . . . . . Trap Hack Attempts . | . . . . . . . . . . . . . . Triggered . | . . . . . . . . . . . . . . Disarmed . | . . . . . . . . . . . . . . Reprogrammed . | . . . . . . . . . . . . . . Reused . | . . . . . . . . . . . . . . Traps Extracted . | . . . . . . . . . . . . . . Installed . | . . . . . . . . . . . . . . Triggered . | . . . . . . . . . . . . . . Machines | -11 -10 -10 -9 -9 -9 -8 -8 -8 -7 -7 -7 -7 -7 ---------- Run | Scr Mat Min Mat Min Exi Min Mat Sto Fac Low Low Zio Dee Machines Disabled 21 | . 2 1 3 . . 1 4 4 . . 1 3 2 Max in Single Turn 1 | . 1 1 1 . . 1 1 1 . . 1 1 1 Garrison Access 2 | . . . . . . . . 1 1 . . . . Machines Sabotaged . | . . . . . . . . . . . . . . Garrisons Compromised . | . . . . . . . . . . . . . . Overloaded Fab Kills . | . . . . . . . . . . . . . . Hacking | -11 -10 -10 -9 -9 -9 -8 -8 -8 -7 -7 -7 -7 -7 --------- Run | Scr Mat Min Mat Min Exi Min Mat Sto Fac Low Low Zio Dee Machines Accessed 35 | . 4 1 7 1 1 . 5 6 8 . 2 . . Terminals 29 | . 4 1 7 . . . 5 5 7 . . . . Fabricators . | . . . . . . . . . . . . . . Repair Stations . | . . . . . . . . . . . . . . Recycling Units . | . . . . . . . . . . . . . . Scanalyzers . | . . . . . . . . . . . . . . Garrison Access 2 | . . . . . . . . 1 1 . . . . Total Hacks 111 | . 9 5 31 1 1 . 18 16 28 . 2 . . Successful 56 | . 4 3 14 1 1 . 6 8 17 . 2 . . Failed 55 | . 5 2 17 . . . 12 8 11 . . . . Catastrophic 5 | . . 1 . . . . 3 1 . . . . . Database Lockouts . | . . . . . . . . . . . . . . Manual 60 | . 5 5 16 . . . 12 5 17 . . . . Terminals 101 | . 9 5 31 . . . 18 12 26 . . . . Fabricators . | . . . . . . . . . . . . . . Repair Stations . | . . . . . . . . . . . . . . Recycling Units . | . . . . . . . . . . . . . . Scanalyzers . | . . . . . . . . . . . . . . Garrison Access 6 | . . . . . . . . 4 2 . . . . Terminal Hacks 41 | . 3 2 11 1 1 . 3 5 13 . 2 . . Record 1 | . . . . . 1 . . . . . . . . Part Schematic 2 | . . . . . . . . . 2 . . . . Prototype ID Bank 1 | . . . 1 . . . . . . . . . . Open Door 6 | . . . . 1 . . . 3 . . 2 . . Level Access Points 1 | . . 1 . . . . . . . . . . . Branch Access Points 2 | . . . 1 . . . . . 1 . . . . Terminal Index 1 | . . . . . . . . . 1 . . . . Alert Level 1 | . . . . . . . . . 1 . . . . Unreport Threat 1 | . . . . . . . . . 1 . . . . Locate Traps 7 | . 1 . 2 . . . . 1 3 . . . . Maintenance Status 1 | . . . 1 . . . . . . . . . . Hauler Manifests 5 | . 1 . 1 . . . 1 1 1 . . . . Registered Components 3 | . 1 . 1 . . . . . 1 . . . . Zone Layout 9 | . . 1 4 . . . 2 . 2 . . . . Fabricator Hacks . | . . . . . . . . . . . . . . Repair Station Hacks . | . . . . . . . . . . . . . . Recycling Unit Hacks . | . . . . . . . . . . . . . . Scanalyzer . | . . . . . . . . . . . . . . Garrison Access Hacks 1 | . . . . . . . . . 1 . . . . Seal Access 1 | . . . . . . . . . 1 . . . . Unauthorized Hacks 14 | . 1 1 3 . . . 3 3 3 . . . . Terminals 13 | . 1 1 3 . . . 3 2 3 . . . . Track 5 | . . 1 2 . . . . 1 1 . . . . Botnet 3 | . . . . . . . 1 1 1 . . . . Disrupt 2 | . 1 . . . . . 1 . . . . . . Operators 3 | . . . 1 . . . 1 . 1 . . . . Fabricators . | . . . . . . . . . . . . . . Repair Stations . | . . . . . . . . . . . . . . Recycling Units . | . . . . . . . . . . . . . . Scanalyzers . | . . . . . . . . . . . . . . Garrison Access 1 | . . . . . . . . 1 . . . . . Jam 1 | . . . . . . . . 1 . . . . . Data Cores Recovered . | . . . . . . . . . . . . . . Used . | . . . . . . . . . . . . . . Hacking Detections 30 | . 4 1 7 . . . 5 6 7 . . . . Full Trace Events 2 | . . 1 . . . . . 1 . . . . . Feedback Events . | . . . . . . . . . . . . . . Feedback Blocked . | . . . . . . . . . . . . . . Robot Schematics Acquired 4 | . . . . . . . . . . . . 4 . Robots Built . | . . . . . . . . . . . . . . Authchips . | . . . . . . . . . . . . . . Time . | . . . . . . . . . . . . . . Total Robot Build Rating . | . . . . . . . . . . . . . . Part Schematics Acquired 17 | . . . . . . . . . 2 . . 15 . Parts Built . | . . . . . . . . . . . . . . Authchips . | . . . . . . . . . . . . . . Time . | . . . . . . . . . . . . . . Total Part Build Rating . | . . . . . . . . . . . . . . Parts Repaired . | . . . . . . . . . . . . . . Time . | . . . . . . . . . . . . . . Parts Recycled . | . . . . . . . . . . . . . . Recycled Matter . | . . . . . . . . . . . . . . Retrieved Matter . | . . . . . . . . . . . . . . Retrieved Components . | . . . . . . . . . . . . . . Parts Scanalyzed . | . . . . . . . . . . . . . . Part Schematics Acquired . | . . . . . . . . . . . . . . Parts Damaged . | . . . . . . . . . . . . . . Bothacking | -11 -10 -10 -9 -9 -9 -8 -8 -8 -7 -7 -7 -7 -7 ------------ Run | Scr Mat Min Mat Min Exi Min Mat Sto Fac Low Low Zio Dee Used RIF Installer . | . . . . . . . . . . . . . . Robots Hacked . | . . . . . . . . . . . . . . Non-combat . | . . . . . . . . . . . . . . Combat . | . . . . . . . . . . . . . . Robot Hacks Applied . | . . . . . . . . . . . . . . Relay Couplers Released . | . . . . . . . . . . . . . . Fabnet Peak Effective % . | . . . . . . . . . . . . . . Robots Rewired . | . . . . . . . . . . . . . . Allies Hacked . | . . . . . . . . . . . . . . Hacks Repelled . | . . . . . . . . . . . . . . Allies | -11 -10 -10 -9 -9 -9 -8 -8 -8 -7 -7 -7 -7 -7 -------- Run | Scr Mat Min Mat Min Exi Min Mat Sto Fac Low Low Zio Dee Total Allies 7 | . . 1 . . . . . 2 . . . 4 . Largest Group 4 | . . 1 1 . . . . 2 . . . 4 . Highest-Rated Group 154 | . . 31 31 . . . . 62 . . . 154 . Highest-Rated Ally 41 | . . 31 31 . . . . 31 . . . 41 . Total Orders 3 | . . . . . . . . 3 . . . . . EXPLORE 3 | . . . . . . . . 3 . . . . . Ally Attacks 22 | . . . 9 . . . . 13 . . . . . Total Damage 294 | . . . 107 . . . . 187 . . . . . Kills 2 | . . . . . . . . 2 . . . . . Allies Corrupted . | . . . . . . . . . . . . . . Allies Melted . | . . . . . . . . . . . . . . Intel | -11 -10 -10 -9 -9 -9 -8 -8 -8 -7 -7 -7 -7 -7 ------- Run | Scr Mat Min Mat Min Exi Min Mat Sto Fac Low Low Zio Dee Robot Analysis Total . | . . . . . . . . . . . . . . Derelict Logs Recovered 7 | . . 2 . 2 . . . . . 1 2 . . Drone Launches 19 | . . . . . . . . 19 . . . . . Drone Recoveries 5 | . . . . . . . . 5 . . . . . Exploration | -11 -10 -10 -9 -9 -9 -8 -8 -8 -7 -7 -7 -7 -7 ------------- Run | Scr Mat Min Mat Min Exi Min Mat Sto Fac Low Low Zio Dee Turns Passed 9309 | 106 724 536 2049 872 506 726 1228 1064 446 97 298 497 160 Spaces Moved 8140 | 61 507 311 977 657 435 490 545 488 939 319 865 1205 341 Core 5 | 5 . . . . . . . . . . . . . Treads 1497 | 54 13 . 644 56 . . 242 488 . . . . . Legs . | . . . . . . . . . . . . . . Wheels 2969 | 2 494 311 333 601 435 490 303 . . . . . . Hover . | . . . . . . . . . . . . . . Flight 3669 | . . . . . . . . . 939 319 865 1205 341 Fastest Speed 29 | 50 95 125 130 115 115 115 130 160 29 29 29 29 29 Average Speed 89 | 149 112 128 164 118 115 128 151 160 29 29 29 29 32 Slowest Speed 400 | 160 160 130 240 240 115 130 400 160 29 29 29 29 40 Overloaded Moves . | . . . . . . . . . . . . . . Propulsion Burnouts . | . . . . . . . . . . . . . . Robots Hopped 4 | . . . . . . . . . . . . . 4 Cave-ins Triggered . | . . . . . . . . . . . . . . Exploration Rate (%) 69 | 4 77 89 84 98 60 93 56 82 32 65 82 85 70 Regions Visited 13 Branch Regions 9 Pre-discovered Areas 3 | . . 1 . . 1 . . . . . . 1 . Known Exits Taken 9 | . . 1 1 . . 1 1 1 1 1 1 1 . Unknown Exits Taken 4 | 1 1 . . 1 1 . . . . . . . . Scrap Searched 14 | . . 1 . 2 . 1 . . . 4 3 3 . Spaces Dug 34 | . . . 1 . . . 11 . 12 1 5 4 . Terrain Destroyed 235 | . . . 1 . . . 54 83 12 1 5 4 75 Melee 23 | . . . 1 . . . 1 . 11 1 5 4 . Projectile 1 | . . . . . . . . . 1 . . . . AOE 211 | . . . . . . . 53 83 . . . . 75 Terrain Rammed . | . . . . . . . . . . . . . . Walls Destroyed . | . . . . . . . . . . . . . . Machines Disabled . | . . . . . . . . . . . . . . Actions | -11 -10 -10 -9 -9 -9 -8 -8 -8 -7 -7 -7 -7 -7 --------- Run | Scr Mat Min Mat Min Exi Min Mat Sto Fac Low Low Zio Dee Total 9295 | 73 587 382 1211 720 442 526 767 652 1060 320 893 1301 361 Wait 293 | 3 8 22 53 38 . 3 46 38 20 . 7 53 2 Move 8119 | 60 506 310 976 656 434 489 544 487 938 318 864 1204 333 Hop 4 | . . . . . . . . . . . . . 4 Pick Up 76 | 4 18 3 20 . 4 1 12 4 4 . 3 1 2 Fast Attach 65 | 6 2 . 5 5 . 1 16 14 3 . 4 8 1 Attach 45 | . 4 3 7 . . 2 9 4 11 . . 1 4 Detach 8 | . . . . 1 . . 2 2 2 . . . 1 Swap 63 | . 4 2 17 . 1 . 20 11 3 1 3 1 . Drop 116 | . 6 3 26 6 3 . 23 22 14 . 4 8 1 Fire 377 | . 39 28 105 14 . 30 94 63 1 . . . 3 Melee 85 | . . 11 1 . . . 1 . 28 1 8 25 10 Ram . | . . . . . . . . . . . . . . Kick . | . . . . . . . . . . . . . . Crush 1 | . . . 1 . . . . . . . . . . Escape Stasis 36 | . . . . . . . . . 36 . . . . Rewire . | . . . . . . . . . . . . . . Trap . | . . . . . . . . . . . . . . Miscellaneous 7 | . . . . . . . . 7 . . . . . Route ------- -11/Scrapyard -10/Materials (discovered 3 exits: *Mat x2 / *Min) -10/Mines (discovered 2 exits: *Mat x2) -9/Materials (discovered 4 exits: *Mat x3 / *Min) -9/Mines (discovered 4 exits: *Mat x2 / *Exi / *Zio) -9/Exiles -8/Mines (discovered 2 exits: *Mat x2) -8/Materials (discovered 2 exits: *Fac / *Sto) -8/Storage (discovered 2 exits: *Fac / Rec) -7/Factory (discovered 3 exits: [Fac] / *Low x2) -7/Lower Caves -7/Lower Caves (discovered 2 exits: [*Fac] / *Zio) -7/Zion (discovered 2 exits: *Dee / Pro) -7/Deep Caves History --------- Turn | Location | Event 55 | -11/Scrapyard | Discovered new exit (range 16) 107 | -11/Scrapyard | Entered Materials 318 | -10/Materials | Build established: Mutant 363 | -10/Materials | Lost 3 parts (1p1n1w) 417 | -10/Materials | Discovered new exit (range 5) 525 | -10/Materials | Discovered new exit (range 7) 621 | -10/Materials | Discovered new exit (range 13) 831 | -10/Materials | Entered Mines 835 | -10/Mines | Met a Derelict bent on vengeance 836 | -10/Mines | Core integrity fell below 50% 852 | -10/Mines | Identified exit to Materials 892 | -10/Mines | A weapon hastily lodged in a ceiling crevice suddenly fell to the ground 922 | -10/Mines | Received a Rocket Launcher from a helpful Derelict 992 | -10/Mines | Excavation squad dispatched 992 | -10/Mines | A large section of the Mines collapsed 1088 | -10/Mines | Learned location of Zion (-7) 1281 | -10/Mines | Learned 2 Materials zone layouts 1329 | -10/Mines | Received a Mining Laser from a helpful Derelict 1367 | -10/Mines | Entered Materials 1367 | -9/Materials | Accompanied by 1 ally 1367 | -9/Materials | Evolved 2 slots: Propulsion x1, Utility x1 1368 | -9/Materials | Identified exit to Materials 1454 | -9/Materials | Identified exit to Mines 1890 | -9/Materials | Discovered exit to Materials (range 14) 2472 | -9/Materials | Discovered exit to Materials (range 16) 3367 | -9/Materials | First assault squad dispatched 3416 | -9/Materials | Entered Mines 3488 | -9/Mines | Met a Derelict shopkeep closing up shop 3597 | -9/Mines | Learned 8 Materials zone layouts 3601 | -9/Mines | Found a hidden stash of uninstalled traps 3603 | -9/Mines | Assembled infested the area 3608 | -9/Mines | Assisted by a Guerilla fighting off Assembled 3644 | -9/Mines | A Derelict revealed a hidden shortcut to a safe place 4011 | -9/Mines | Discovered exit to Materials (range 6) 4033 | -9/Mines | Discovered exit to Materials (range 7) 4282 | -9/Mines | Deemed a non-threat by the Exiles lab entrance 4283 | -9/Mines | Discovered new exit (range 5) 4288 | -9/Mines | Entered Exiles 4318 | -9/Exiles | Met 8R-AWN 4337 | -9/Exiles | Met EX-HEX 4388 | -9/Exiles | Met EX-DEC 4779 | -9/Exiles | Discovered new exit (range 15) 4794 | -9/Exiles | Entered Mines 5055 | -8/Mines | Discovered exit to Materials (range 8) 5403 | -8/Mines | Discovered exit to Materials (range 6) 5520 | -8/Mines | Entered Materials 5520 | -8/Materials | Evolved 2 slots: Propulsion x1, Utility x1 5521 | -8/Materials | Identified exit to Storage 5521 | -8/Materials | Identified exit to Factory 6168 | -8/Materials | Destroyed 7 combat bots 6678 | -8/Materials | Lost 4 parts (2p1u1w) 6720 | -8/Materials | First assault squad dispatched 6748 | -8/Materials | Entered Storage 6749 | -8/Storage | Identified exit to Recycling 7218 | -8/Storage | Build established: Scavenger-Mutant 7304 | -8/Storage | Discovered exit to Factory (range 12) 7423 | -8/Storage | Found Prototype Launcher 7476 | -8/Storage | Identified Scatter Rocket Array 7522 | -8/Storage | Met a pair of Derelict thieves 7635 | -8/Storage | Destroyed 12 combat bots 7812 | -8/Storage | Entered Factory 7812 | -7/Factory | Evolved 2 slots: Utility x2 7928 | -7/Factory | Identified exit to Lower Caves 8219 | -7/Factory | Discovered new exit (range 10) 8258 | -7/Factory | Entered Lower Caves 8291 | -7/Lower Caves | Encountered a Warlord checkpoint 8333 | -7/Lower Caves | Build established: Hacker-Scout 8336 | -7/Lower Caves | Learned Factory emergency access door positions 8347 | -7/Lower Caves | Discovered new exit (range 10) 8355 | -7/Lower Caves | Identified exit to Lower Caves 8355 | -7/Lower Caves | Entered another Lower Caves area 8362 | -7/Lower Caves | Discovered new exit (range 16) 8380 | -7/Lower Caves | Found Prototype Device 8380 | -7/Lower Caves | Identified Heart of Steel 8455 | -7/Lower Caves | Learned location of 1 exit from Factory 8462 | -7/Lower Caves | Identified exit to Zion 8653 | -7/Lower Caves | Entered Zion 8665 | -7/Zion | Found Prototype Hackware 8665 | -7/Zion | Identified Exp. System Shield 8669 | -7/Zion | Found Prototype Processor 8669 | -7/Zion | Identified Exp. Melee Analysis Suite 8672 | -7/Zion | Found Prototype Processor 8672 | -7/Zion | Identified Exp. Signal Interpreter 8675 | -7/Zion | Found Prototype Processor 8675 | -7/Zion | Identified Exp. Armor Integrity Analyzer 8723 | -7/Zion | Identified exit to Proximity Caves 8872 | -7/Zion | Learned Factory garrison access intel 8970 | -7/Zion | Build established: Scout 8999 | -7/Zion | Discovered new exit (range 4) 8999 | -7/Zion | Saw the warning signs outside the Deep Caves entrance 8999 | -7/Zion | Identified exit to Deep Caves 9031 | -7/Zion | Imprinted 9033 | -7/Zion | Declared Zion's savior 9150 | -7/Zion | Entered Deep Caves 9150 | -7/Deep Caves | Accompanied by 4 allies 9186 | -7/Deep Caves | Z-Facility disabled 9196 | -7/Deep Caves | Attacked by Z-Imprinter 9262 | -7/Deep Caves | Destroyed Z-Imprinter 9272 | -7/Deep Caves | Spotted as-45535 9276 | -7/Deep Caves | Core integrity fell below 50% 9278 | -7/Deep Caves | Triggered Deep Caves wall 9278 | -7/Deep Caves | Spotted AS-46044 9284 | -7/Deep Caves | Core integrity fell below 20% 9310 | -7/Deep Caves | Destroyed by 7P-T3G(z) with Zionite Laser-S Last Messages --------------- 09306_ Survey Way Station disabled. 09306_ as-62867 destroyed. 09306_ as-14450 destroyed. 09306_ Surveybot 24 destroyed. 09306_ Destroyed Asb. F-torch. 09306_ Destroyed Unknown Hover Unit. 09306_ S5-A77(z) destroyed. 09306_ as-62084 destroyed. 09306_ as-61738 destroyed. 09306_ as-14423 destroyed. 09306_ Destroyed Unknown Hover Unit. 09306_ as-43554 destroyed. 09306_ Destroyed Asb. F-torch. 09306_ as-21720 destroyed. 09306_ as-44752 destroyed. 09307_ The unstable cave ceiling collapses. 09309_ Destroyed Unknown Hover Unit. 09309_ as-26067 destroyed. 09309_ as-70615 destroyed. 09309_ as-26870 destroyed. Map ----- +----------------------------------------------------+ | | | | | | | | | | | | | | | | | | | | | | | | | | | | | | | | | | | | | | | | | ?????????????????????????????????????????????????? | | ?????????????????????????????????????????????????? | | ????????????????????????######???????????????????? | | ???????????????????????## ##??????????????????? | | ?????????????# ???????## #??????????????????? | | ????????##??? ??????## @ #??????????????????? | | ?????? #?? ????## ##??????????????????? | | ?????? ## ##### a #???????????????????? | | ??????? # ## # #???????????????????? | | ???????? ## #???????????????????? | | ????????? ### #????????????? | | ?????????? ? %* ##???????????# | | ??????????# # !! #???????????## | | ?????????## # a ##?????????? # | | ????????## ?# ##??????????? | | ???????## #?# #???????????? | | ??????## ### #????????????# | | ???### az #???????????## | | #?## #???????????# | | ## #### ?????????????# | | ##??# ??????????#### | | ###???## ##???????????## # | | ##??????## #????????????# | | #### #????????# #???????####?# | | ???# #####????# ??????? #?# | | ???# # ?????? #??# | | ???# ########??######?????# #??### | | ???# #????????????????????# #????# | | ???# #????????????????????# #????## | | ??# ## #??####?????????###### #?????# | +----------------------------------------------------+ Best States ------------- Heat Dissipation 58 Energy Generation 16 Energy Capacity 290 Matter Stores 300 Matter Capacity 300 Sight Range 16 Robot Scan Range 15 Terrain Scan Density 10 Armor Coverage 450 Resistance: KI 30 Utility Shielding 66 Evasion (%) 64 Recoil Reduction 4 Offensive Hacking 10 Defensive Hacking 16 Item Schematics ----------------- Energy Well | -7/Factory | Hacked Smartbomb Launcher | -7/Factory | Hacked Imp. Actuator Array | -7/Zion | Archive Remote Datajack | -7/Zion | Archive Weapon Cycler | -7/Zion | Archive Flexi-carbon Leg | -7/Zion | Archive Fusion Compressor | -7/Zion | Archive Kinecellerator | -7/Zion | Archive Field Propulsion Drive | -7/Zion | Archive Phase Shifter | -7/Zion | Archive Energy Filter | -7/Zion | Archive Component Analysis Suite | -7/Zion | Archive Hvy. Plasma Cannon | -7/Zion | Archive Xenon Bombardment Thruster | -7/Zion | Archive System Guard | -7/Zion | Archive Flak Gun | -7/Zion | Archive Imp. Kinecellerator | -7/Zion | Archive Robot Schematics ------------------ S-27 Virus | -7/Zion | Archive Y-54 Guardian | -7/Zion | Archive G-47 Trooper | -7/Zion | Archive G-73 Enforcer | -7/Zion | Archive Fabricated ------------ Nothing Alien Tech Used ----------------- None Achievements -------------- None Challenges ------------ None Game ------ Seed FlyingFirePit Manual? 0 Play Time 01:44:28 Cumulative 222.5 hours Start 2022.04.25 @ 14:33:29 End 2022.04.25 @ 16:35:10 Sessions 1 Manual Loads 0 Difficulty Rogue Special Mode None Game No. 68 Rogue 51 Adventurer 17 Explorer 0 Win Type - Total 12 Types 7/0/4/1/0/0/0/0/0 Lore% 73 Gallery% 74 Achievement% 67 Wizard Run 0 Options --------- ASCII 0 Keyboard 0 Movement Arrows Keybinds 0 Fullscreen 1 Font 28/Dina Map View 72x54 Tactical HUD 1 Map Filters NONE Filters NONE Steam 1 RUN: 4b94ef6e-9fbe-4c54-bcc4-778490466db2